[Event "7th Leer Open-A 2024"]
[Site "Leer"]
[Date "2024.10.31"]
[Round "1.30"]
[White "Schaefer, Maik"]
[Black "Gellrich, Peter"]
[Result "1-0"]
[ECO "B51"]
[WhiteElo "1914"]
[BlackElo "2134"]
[Annotator "RC"]
[PlyCount "79"]
[EventDate "2024.10.14"]
[EventType "swiss"]
[EventCountry "GER"]
[SourceTitle "playchess.com"]
[Source "ChessBase"]
[SourceQuality "1"]
[TimeControl "40/5400+30:900+30"]

1. e4 {[%emt 0:00:06]} c5 {[%emt 0:00:15]} 2. Nf3 {[%emt 0:00:17]} d6 {[%emt 0:00:17]} 3. Bb5+ {[%emt 0:00:40]} Nd7 {[%emt 0:00:24]} 4. c3 {[%emt 0:00:52]} Ngf6 {[%emt 0:00:47]} 5. Qe2 {[%emt 0:01:30]} e6 {[%emt 0:03:01]} 6. O-O {[%emt 0:00:43]} Be7 {[%emt 0:00:51]} 7. d4 {[%emt 0:00:39]} a6 {[%emt 0:03:41]} 8. Bd3 {[%emt 0:02:04]} cxd4 {[%emt 0:03:54]} 9. cxd4 {[%emt 0:00:16]} e5 {[%emt 0:00:31]} 10. Nc3 {[%emt 0:04:11]} O-O {[%emt 0:01:56]} 11. Rd1 {[%emt 0:05:14]} Re8 {[%emt 0:12:19]} 12. dxe5 {[%emt 0:16:48]} dxe5 {[%emt 0:00:36]} 13. Bc4 {[%emt 0:14:11]} Qc7 {[%emt 0:08:33]} 14. Ng5 {[%emt 0:06:03]} Rf8 {[%emt 0:00:39]} 15. Be3 {[%emt 0:04:04]} h6 {[%emt 0:04:14]} 16. Nf3 {[%emt 0:00:35]} Bc5 {[%emt 0:14:45]} 17. Nd5 {[%emt 0:07:59]} Nxd5 {[%emt 0:02:39]} 18. Bxd5 {[%emt 0:00:05]} Bxe3 {[%emt 0:00:35]} 19. Qxe3 {[%emt 0:00:21]} Nf6 {[%emt 0:02:33]} 20. Rac1 {[%emt 0:02:50]} Qe7 {[%emt 0:00:30]} 21. Qb6 {[%emt 0:02:11]} Bg4 {[%emt 0:12:15]} 22. Rc7 {[%emt 0:05:53]} Qe8 {[%emt 0:01:26]} 23. Rd3 {[%emt 0:07:39]} Nxd5 {[%emt 0:00:46]} 24. Rxd5 {[%emt 0:02:24]} Qa4 {[%emt 0:01:13]} 25. h3 {[%emt 0:04:54]} Be6 {[%emt 0:03:34]} 26. Rxe5 {[%emt 0:00:54]} Rad8 {[%emt 0:03:57]} 27. Kh2 {[%emt 0:05:55]} Rd1 {[%emt 0:02:38]} 28. Rxe6 {[%emt 0:02:09]} fxe6 {[%emt 0:00:12]} 29. Qxe6+ {[%emt 0:00:01]} Kh7 {[%emt 0:03:33]} 30. Nh4 {[%emt 0:00:34]} Qe8 {[%emt 0:00:35]} 31. Re7 {[%emt 0:01:11]} Qc6 {[%emt 0:02:17]} 32. Qxc6 {[%emt 0:02:15]} bxc6 {[%emt 0:00:08]} 33. Nf5 {[%emt 0:00:11]} Kh8 {[%emt 0:02:30]} 34. f3 {[%emt 0:00:07]} Rb8 {[%emt 0:00:18]} 35. b3 {[%emt 0:00:26]} Rd2 {[%emt 0:00:10]} 36. e5 {[%emt 0:01:35]} g6 {[%emt 0:01:51]} 37. Nxh6 {[%emt 0:00:15]} Rxa2 {[%emt 0:00:56]} 38. Ng4 {[%emt 0:00:11]} Kg8 {[%emt 0:00:32]} 39. e6 {[%emt 0:00:29]} Re2 {[%emt 0:00:28]} 40. Nf6+ {[%emt 0:00:16]} 1-0

[Event "7th Leer Open-A 2024"]
[Site "Leer"]
[Date "2024.10.31"]
[Round "1.31"]
[White "Kummerow, Heiko"]
[Black "Stoy, Ulf"]
[Result "1-0"]
[ECO "B06"]
[WhiteElo "2074"]
[BlackElo "1910"]
[Annotator "RC"]
[PlyCount "63"]
[EventDate "2024.10.14"]
[EventType "swiss"]
[EventCountry "GER"]
[SourceTitle "playchess.com"]
[Source "ChessBase"]
[SourceQuality "1"]
[TimeControl "40/5400+30:900+30"]

1. e4 {[%emt 0:01:03]} g6 {[%emt 0:01:10]} 2. d4 {[%emt 0:00:36]} Bg7 {[%emt 0:00:36]} 3. Nc3 {[%emt 0:00:36]} d6 {[%emt 0:00:38]} 4. f4 {[%emt 0:00:41]} a6 {[%emt 0:00:54]} 5. Nf3 {[%emt 0:00:48]} b5 {[%emt 0:00:00]} 6. Bd3 {[%emt 0:00:00]} Bb7 {[%emt 0:00:00]} 7. O-O {[%emt 0:06:54]} Nd7 {[%emt 0:00:36]} 8. e5 {[%emt 0:08:02]} c5 {[%emt 0:15:48]} 9. exd6 {[%emt 0:03:15]} exd6 {[%emt 0:00:19]} 10. Be4 {[%emt 0:14:58]} Bxe4 {[%emt 0:07:27]} 11. Nxe4 {[%emt 0:00:23]} Ndf6 {[%emt 0:00:32]} 12. Qe2 {[%emt 0:11:07]} Nxe4 {[%emt 0:08:09]} 13. Qxe4+ {[%emt 0:00:05]} Ne7 {[%emt 0:00:11]} 14. Re1 {[%emt 0:02:46]} d5 {[%emt 0:06:12]} 15. Qe2 {[%emt 0:01:24]} cxd4 {[%emt 0:01:16]} 16. Bd2 {[%emt 0:02:05]} Bf6 {[%emt 0:25:41]} 17. Bb4 {[%emt 0:01:00]} Rc8 {[%emt 0:10:39]} 18. Bxe7 {[%emt 0:05:54]} Bxe7 {[%emt 0:00:03]} 19. Qe5 {[%emt 0:00:15]} f6 {[%emt 0:02:11]} 20. Qxf6 {[%emt 0:01:02]} Rf8 {[%emt 0:00:12]} 21. Qxa6 {[%emt 0:04:35]} Rxc2 {[%emt 0:00:39]} 22. Ne5 {[%emt 0:04:47]} Qc8 {[%emt 0:03:03]} 23. Qxb5+ {[%emt 0:00:25]} Kd8 {[%emt 0:00:10]} 24. Qxd5+ {[%emt 0:01:08]} Ke8 {[%emt 0:00:07]} 25. Rad1 {[%emt 0:08:08]} Rxf4 {[%emt 0:02:04]} 26. Qg8+ {[%emt 0:00:37]} Rf8 {[%emt 0:01:23]} 27. Qxh7 {[%emt 0:04:17]} Qf5 {[%emt 0:06:02]} 28. Qxg6+ {[%emt 0:00:47]} Qxg6 {[%emt 0:00:11]} 29. Nxg6 {[%emt 0:00:04]} Rff2 {[%emt 0:00:11]} 30. Rxe7+ {[%emt 0:00:10]} Kd8 {[%emt 0:00:11]} 31. Rxd4+ {[%emt 0:00:12]} Kc8 {[%emt 0:00:07]} 32. Rc4+ {[%emt 0:00:09]} 1-0

[Event "7th Leer Open-A 2024"]
[Site "Leer"]
[Date "2024.10.31"]
[Round "1.32"]
[White "Kovalskyy, Alicia"]
[Black "Vandenhole, Kobe"]
[Result "0-1"]
[ECO "B73"]
[WhiteElo "1906"]
[BlackElo "2128"]
[Annotator "RC"]
[PlyCount "114"]
[EventDate "2024.10.14"]
[EventType "swiss"]
[EventCountry "GER"]
[SourceTitle "playchess.com"]
[Source "ChessBase"]
[SourceQuality "1"]
[TimeControl "40/5400+30:900+30"]

1. e4 {[%emt 0:00:01]} c5 {[%emt 0:00:05]} 2. Nf3 {[%emt 0:00:04]} d6 {[%emt 0:00:07]} 3. d4 {[%emt 0:00:04]} Nf6 {[%emt 0:00:04]} 4. Nc3 {[%emt 0:06:42]} cxd4 {[%emt 0:00:07]} 5. Nxd4 {[%emt 0:00:06]} g6 {[%emt 0:00:15]} 6. Be2 {[%emt 0:01:14]} Bg7 {[%emt 0:00:18]} 7. Be3 {[%emt 0:00:18]} O-O {[%emt 0:00:34]} 8. O-O {[%emt 0:03:00]} Nc6 {[%emt 0:00:38]} 9. h3 {[%emt 0:02:34]} Bd7 {[%emt 0:06:39]} 10. Qd2 {[%emt 0:03:10]} Rc8 {[%emt 0:01:58]} 11. f4 {[%emt 0:13:04]} Re8 {[%emt 0:05:27]} 12. Bf3 {[%emt 0:02:04]} a6 {[%emt 0:05:48]} 13. Nxc6 {[%emt 0:15:47]} Bxc6 {[%emt 0:00:36]} 14. Nd5 {[%emt 0:01:44]} Bb5 {[%emt 0:07:47]} 15. Rfb1 {[%emt 0:18:33]} Nd7 {[%emt 0:00:45]} 16. c3 {[%emt 0:02:09]} e6 {[%emt 0:02:43]} 17. Nb4 {[%emt 0:01:58]} Nb6 {[%emt 0:00:30]} 18. Qf2 {[%emt 0:06:37]} Nc4 {[%emt 0:03:20]} 19. a4 {[%emt 0:01:10]} Bc6 {[%emt 0:02:55]} 20. Nxc6 {[%emt 0:03:49]} bxc6 {[%emt 0:01:05]} 21. Be2 {[%emt 0:02:28]} Nxe3 {[%emt 0:02:39]} 22. Qxe3 {[%emt 0:00:58]} a5 {[%emt 0:00:57]} 23. Rd1 {[%emt 0:04:37]} Qc7 {[%emt 0:02:01]} 24. Kh1 {[%emt 0:01:52]} d5 {[%emt 0:01:06]} 25. e5 {[%emt 0:03:32]} Rb8 {[%emt 0:01:06]} 26. Rd2 {[%emt 0:00:46]} f6 {[%emt 0:00:23]} 27. Re1 {[%emt 0:01:52]} fxe5 {[%emt 0:02:54]} 28. fxe5 {[%emt 0:00:05]} Qxe5 {[%emt 0:00:27]} 29. Qxe5 {[%emt 0:00:11]} Bxe5 {[%emt 0:00:03]} 30. Bg4 {[%emt 0:00:21]} Bf4 {[%emt 0:00:13]} 31. Rde2 {[%emt 0:00:55]} e5 {[%emt 0:02:38]} 32. Bd7 {[%emt 0:00:10]} Red8 {[%emt 0:03:50]} 33. Bxc6 {[%emt 0:00:13]} Rd6 {[%emt 0:00:51]} 34. Bb5 {[%emt 0:00:24]} Kg7 {[%emt 0:04:28]} 35. Rf1 {[%emt 0:02:02]} d4 {[%emt 0:01:07]} 36. cxd4 {[%emt 0:01:36]} Rxd4 {[%emt 0:00:02]} 37. g4 {[%emt 0:00:24]} Rc8 {[%emt 0:00:47]} 38. Kg2 {[%emt 0:00:31]} g5 {[%emt 0:01:35]} 39. Rfe1 {[%emt 0:00:30]} Kf6 {[%emt 0:01:26]} 40. Re4 {[%emt 0:00:57]} Rc2+ {[%emt 0:01:29]} 41. R4e2 {[%emt 0:16:00]} Rxe2+ {[%emt 0:17:08]} 42. Rxe2 {[%emt 0:00:10]} e4 {[%emt 0:00:06]} 43. Rc2 {[%emt 0:00:00]} Rd1 {[%emt 0:00:00]} 44. Be2 {[%emt 0:00:00]} Rb1 {[%emt 0:00:00]} 45. Bf1 {[%emt 0:00:00]} Ke5 {[%emt 0:00:00]} 46. Rc5+ {[%emt 0:00:33]} Kd4 {[%emt 0:00:00]} 47. Rc4+ {[%emt 0:00:05]} Ke3 {[%emt 0:00:00]} 48. Rc2 {[%emt 0:00:56]} Rd1 {[%emt 0:00:00]} 49. Re2+ {[%emt 0:01:14]} Kd4 {[%emt 0:00:00]} 50. Rc2 {[%emt 0:00:12]} Ra1 {[%emt 0:00:00]} 51. Bb5 {[%emt 0:01:55]} Be3 {[%emt 0:00:00]} 52. Rc4+ {[%emt 0:00:19]} Ke5 {[%emt 0:00:00]} 53. Bc6 {[%emt 0:00:18]} Bd4 {[%emt 0:00:00]} 54. b4 {[%emt 0:00:57]} e3 {[%emt 0:01:20]} 55. Bf3 {[%emt 0:01:11]} Ra2+ {[%emt 0:01:07]} 56. Kh1 {[%emt 0:00:31]} Rf2 {[%emt 0:00:33]} 57. Rc8 {[%emt 0:00:25]} Rxf3 {[%emt 0:00:12]} 0-1

[Event "7th Leer Open-A 2024"]
[Site "Leer"]
[Date "2024.10.31"]
[Round "1.33"]
[White "Brandes, Stephan"]
[Black "Van Coppenolle, Lander"]
[Result "1-0"]
[ECO "B08"]
[WhiteElo "2125"]
[BlackElo "1907"]
[Annotator "RC"]
[PlyCount "85"]
[EventDate "2024.10.14"]
[EventType "swiss"]
[EventCountry "GER"]
[SourceTitle "playchess.com"]
[Source "ChessBase"]
[SourceQuality "1"]
[TimeControl "40/5400+30:900+30"]

1. e4 {[%emt 0:00:07]} c5 {[%emt 0:00:09]} 2. d4 {[%emt 0:00:11]} cxd4 {[%emt 0:00:05]} 3. Qxd4 {[%emt 0:00:08]} Nc6 {[%emt 0:00:13]} 4. Qd3 {[%emt 0:00:08]} d6 {[%emt 0:02:06]} 5. Nc3 {[%emt 0:00:22]} Nf6 {[%emt 0:00:17]} 6. Nf3 {[%emt 0:01:03]} g6 {[%emt 0:01:24]} 7. Be2 {[%emt 0:00:27]} Bg7 {[%emt 0:00:12]} 8. O-O {[%emt 0:00:54]} O-O {[%emt 0:01:29]} 9. Nd5 {[%emt 0:00:43]} Nxd5 {[%emt 0:14:50]} 10. exd5 {[%emt 0:00:36]} Nb8 {[%emt 0:01:33]} 11. c3 {[%emt 0:03:25]} Nd7 {[%emt 0:06:13]} 12. Bg5 {[%emt 0:04:32]} Re8 {[%emt 0:07:08]} 13. Rfe1 {[%emt 0:06:55]} Nf6 {[%emt 0:15:50]} 14. Rad1 {[%emt 0:04:47]} a6 {[%emt 0:08:16]} 15. Qc2 {[%emt 0:12:47]} b5 {[%emt 0:11:25]} 16. Nd4 {[%emt 0:08:40]} Bb7 {[%emt 0:01:30]} 17. Nc6 {[%emt 0:01:23]} Qc7 {[%emt 0:00:23]} 18. Bf3 {[%emt 0:16:56]} e6 {[%emt 0:06:20]} 19. Qd2 {[%emt 0:20:24]} Bxc6 {[%emt 0:08:54]} 20. dxc6 {[%emt 0:00:21]} d5 {[%emt 0:00:05]} 21. h4 {[%emt 0:00:17]} Qxc6 {[%emt 0:01:01]} 22. Qf4 {[%emt 0:00:55]} Nd7 {[%emt 0:02:27]} 23. h5 {[%emt 0:00:20]} Nf8 {[%emt 0:04:40]} 24. h6 {[%emt 0:01:16]} Bh8 {[%emt 0:01:28]} 25. Bf6 {[%emt 0:00:39]} e5 {[%emt 0:04:16]} 26. Bxe5 {[%emt 0:00:15]} Qc4 {[%emt 0:00:39]} 27. Qxc4 {[%emt 0:01:29]} bxc4 {[%emt 0:00:11]} 28. Bxh8 {[%emt 0:00:17]} Kxh8 {[%emt 0:00:06]} 29. Bxd5 {[%emt 0:00:32]} Rxe1+ {[%emt 0:00:23]} 30. Rxe1 {[%emt 0:00:01]} Ra7 {[%emt 0:01:00]} 31. Bxc4 {[%emt 0:01:50]} Kg8 {[%emt 0:00:10]} 32. Re8 {[%emt 0:00:23]} Rd7 {[%emt 0:00:12]} 33. Bxa6 {[%emt 0:01:09]} Rd1+ {[%emt 0:00:06]} 34. Kh2 {[%emt 0:00:09]} Rd2 {[%emt 0:02:29]} 35. Re2 {[%emt 0:13:39]} Rd6 {[%emt 0:00:30]} 36. Bc4 {[%emt 0:00:30]} g5 {[%emt 0:00:30]} 37. a4 {[%emt 0:00:30]} Rxh6+ {[%emt 0:00:00]} 38. Kg1 {[%emt 0:00:00]} Rd6 {[%emt 0:00:00]} 39. a5 {[%emt 0:00:00]} Ng6 {[%emt 0:00:00]} 40. a6 {[%emt 0:00:00]} Rd1+ {[%emt 0:00:00]} 41. Kh2 {[%emt 0:09:53]} Ra1 {[%emt 0:14:15]} 42. b4 {[%emt 0:00:26]} g4 {[%emt 0:01:56]} 43. Ra2 {[%emt 0:00:42]} 1-0

[Event "7th Leer Open-A 2024"]
[Site "Leer"]
[Date "2024.10.31"]
[Round "1.34"]
[White "Leppert, Stefan"]
[Black "Pahl, Theis"]
[Result "0-1"]
[ECO "E13"]
[WhiteElo "1904"]
[BlackElo "2101"]
[Annotator "RC"]
[PlyCount "58"]
[EventDate "2024.10.14"]
[EventType "swiss"]
[EventCountry "GER"]
[SourceTitle "playchess.com"]
[Source "ChessBase"]
[SourceQuality "1"]
[TimeControl "40/5400+30:900+30"]

1. d4 {[%emt 0:00:03]} Nf6 {[%emt 0:00:10]} 2. c4 {[%emt 0:00:10]} e6 {[%emt 0:02:04]} 3. Nc3 {[%emt 0:00:11]} Bb4 {[%emt 0:00:05]} 4. Qc2 {[%emt 0:00:12]} O-O {[%emt 0:01:23]} 5. Nf3 {[%emt 0:01:22]} b6 {[%emt 0:00:35]} 6. Bg5 {[%emt 0:01:27]} h6 {[%emt 0:01:18]} 7. Bh4 {[%emt 0:01:21]} Bb7 {[%emt 0:00:15]} 8. e3 {[%emt 0:03:06]} g5 {[%emt 0:02:13]} 9. Bg3 {[%emt 0:00:11]} Ne4 {[%emt 0:00:06]} 10. Bd3 {[%emt 0:00:58]} f5 {[%emt 0:00:18]} 11. a3 {[%emt 0:05:06]} Bxc3+ {[%emt 0:00:12]} 12. bxc3 {[%emt 0:00:04]} d6 {[%emt 0:03:44]} 13. O-O {[%emt 0:05:10]} Nd7 {[%emt 0:06:12]} 14. Nd2 {[%emt 0:01:01]} Nxd2 {[%emt 0:01:06]} 15. Qxd2 {[%emt 0:00:09]} Qf6 {[%emt 0:00:06]} 16. f4 {[%emt 0:11:10]} Rae8 {[%emt 0:15:30]} 17. Rae1 {[%emt 0:02:02]} Qg6 {[%emt 0:02:23]} 18. Qb2 {[%emt 0:22:43]} Nf6 {[%emt 0:06:57]} 19. c5 {[%emt 0:02:15]} Be4 {[%emt 0:04:06]} 20. Be2 {[%emt 0:03:02]} gxf4 {[%emt 0:08:58]} 21. Rxf4 {[%emt 0:05:46]} bxc5 {[%emt 0:10:38]} 22. dxc5 {[%emt 0:01:21]} Qg5 {[%emt 0:08:44]} 23. Bd1 {[%emt 0:06:10]} e5 {[%emt 0:03:01]} 24. Rh4 {[%emt 0:01:21]} Rb8 {[%emt 0:05:46]} 25. Qa2+ {[%emt 0:03:15]} d5 {[%emt 0:01:54]} 26. Qf2 {[%emt 0:02:21]} Rbe8 {[%emt 0:01:59]} 27. Qd2 {[%emt 0:06:29]} h5 {[%emt 0:03:09]} 28. c4 {[%emt 0:00:58]} d4 {[%emt 0:02:59]} 29. Qf2 {[%emt 0:03:46]} dxe3 {[%emt 0:03:31]} 0-1

[Event "7th Leer Open-A 2024"]
[Site "Leer"]
[Date "2024.10.31"]
[Round "1.35"]
[White "Hulshof, Peter"]
[Black "Wiethuechter, Samuel"]
[Result "1-0"]
[ECO "B25"]
[WhiteElo "2120"]
[BlackElo "1883"]
[Annotator "RC"]
[PlyCount "53"]
[EventDate "2024.10.14"]
[EventType "swiss"]
[EventCountry "GER"]
[SourceTitle "playchess.com"]
[Source "ChessBase"]
[SourceQuality "1"]
[TimeControl "40/5400+30:900+30"]

1. e4 {[%emt 0:00:04]} c5 {[%emt 0:00:12]} 2. Nc3 {[%emt 0:00:20]} Nc6 {[%emt 0:01:45]} 3. g3 {[%emt 0:00:10]} g6 {[%emt 0:01:19]} 4. Bg2 {[%emt 0:00:07]} Bg7 {[%emt 0:00:33]} 5. d3 {[%emt 0:00:14]} d6 {[%emt 0:06:13]} 6. f4 {[%emt 0:01:56]} Nf6 {[%emt 0:07:58]} 7. Nf3 {[%emt 0:02:28]} Bg4 {[%emt 0:08:45]} 8. h3 {[%emt 0:03:38]} Bxf3 {[%emt 0:08:33]} 9. Qxf3 {[%emt 0:00:38]} Nd4 {[%emt 0:00:11]} 10. Qf2 {[%emt 0:00:14]} Nd7 {[%emt 0:06:41]} 11. O-O {[%emt 0:05:34]} O-O {[%emt 0:06:55]} 12. Nb1 {[%emt 0:05:36]} Nc6 {[%emt 0:07:05]} 13. c3 {[%emt 0:03:28]} Rc8 {[%emt 0:03:27]} 14. Be3 {[%emt 0:05:41]} e5 {[%emt 0:06:20]} 15. f5 {[%emt 0:05:48]} Bf6 {[%emt 0:05:34]} 16. Nd2 {[%emt 0:05:25]} b5 {[%emt 0:01:54]} 17. Nf3 {[%emt 0:06:48]} gxf5 {[%emt 0:04:25]} 18. exf5 {[%emt 0:00:34]} d5 {[%emt 0:00:07]} 19. g4 {[%emt 0:19:11]} Be7 {[%emt 0:05:43]} 20. Nd2 {[%emt 0:09:14]} Nb6 {[%emt 0:07:55]} 21. f6 {[%emt 0:03:37]} Bd6 {[%emt 0:00:05]} 22. Qh4 {[%emt 0:00:04]} Kh8 {[%emt 0:01:10]} 23. Rf5 {[%emt 0:00:15]} Nd7 {[%emt 0:00:44]} 24. Raf1 {[%emt 0:01:21]} Rg8 {[%emt 0:00:24]} 25. Qxh7+ {[%emt 0:00:55]} Kxh7 {[%emt 0:00:21]} 26. Rh5+ {[%emt 0:00:03]} Kg6 {[%emt 0:00:09]} 27. Rh6# {[%emt 0:00:03]} 1-0

[Event "7th Leer Open-A 2024"]
[Site "Leer"]
[Date "2024.10.31"]
[Round "1.36"]
[White "Schreiber, Ralf"]
[Black "Skembris, Simon Max"]
[Result "0-1"]
[ECO "A25"]
[WhiteElo "1884"]
[BlackElo "2119"]
[Annotator "RC"]
[PlyCount "42"]
[EventDate "2024.10.14"]
[EventType "swiss"]
[EventCountry "GER"]
[SourceTitle "playchess.com"]
[Source "ChessBase"]
[SourceQuality "1"]
[TimeControl "40/5400+30:900+30"]

1. c4 {[%emt 0:00:05]} e5 {[%emt 0:01:07]} 2. Nc3 {[%emt 0:00:11]} Nf6 {[%emt 0:00:09]} 3. e4 {[%emt 0:00:31]} Nc6 {[%emt 0:04:58]} 4. g3 {[%emt 0:00:22]} Bc5 {[%emt 0:04:27]} 5. Bg2 {[%emt 0:01:08]} d6 {[%emt 0:06:19]} 6. Nge2 {[%emt 0:01:42]} Nb4 {[%emt 0:05:55]} 7. d3 {[%emt 0:01:38]} Ng4 {[%emt 0:02:35]} 8. O-O {[%emt 0:03:09]} Qf6 {[%emt 0:03:44]} 9. d4 {[%emt 0:05:05]} exd4 {[%emt 0:03:22]} 10. Nd5 {[%emt 0:06:41]} Nxd5 {[%emt 0:02:40]} 11. exd5 {[%emt 0:00:15]} O-O {[%emt 0:06:21]} 12. h3 {[%emt 0:12:40]} Nxf2 {[%emt 0:05:20]} 13. Rxf2 {[%emt 0:05:13]} d3 {[%emt 0:00:36]} 14. Nf4 {[%emt 0:04:29]} Bxf2+ {[%emt 0:01:39]} 15. Kxf2 {[%emt 0:00:09]} g5 {[%emt 0:00:46]} 16. Qxd3 {[%emt 0:01:44]} gxf4 {[%emt 0:01:05]} 17. gxf4 {[%emt 0:03:34]} Bf5 {[%emt 0:01:31]} 18. Qb3 {[%emt 0:03:28]} Rfe8 {[%emt 0:01:53]} 19. Bd2 {[%emt 0:03:35]} Qd4+ {[%emt 0:01:20]} 20. Be3 {[%emt 0:01:59]} Rxe3 {[%emt 0:00:24]} 21. Qxe3 {[%emt 0:00:13]} Qxb2+ {[%emt 0:00:13]} 0-1

[Event "7th Leer Open-A 2024"]
[Site "Leer"]
[Date "2024.10.31"]
[Round "1.38"]
[White "Hielscher, Fabian"]
[Black "Sommer, Justus"]
[Result "0-1"]
[ECO "D61"]
[WhiteElo "1872"]
[BlackElo "2114"]
[Annotator "RC"]
[PlyCount "120"]
[EventDate "2024.10.14"]
[EventType "swiss"]
[EventCountry "GER"]
[SourceTitle "playchess.com"]
[Source "ChessBase"]
[SourceQuality "1"]
[TimeControl "40/5400+30:900+30"]

1. d4 {[%emt 0:00:01]} d5 {[%emt 0:00:12]} 2. c4 {[%emt 0:00:17]} e6 {[%emt 0:00:09]} 3. Nf3 {[%emt 0:00:28]} Nf6 {[%emt 0:00:20]} 4. Bg5 {[%emt 0:00:12]} Be7 {[%emt 0:00:20]} 5. Nc3 {[%emt 0:00:42]} O-O {[%emt 0:00:21]} 6. e3 {[%emt 0:00:13]} Nbd7 {[%emt 0:00:38]} 7. a3 {[%emt 0:00:33]} c6 {[%emt 0:12:45]} 8. Qc2 {[%emt 0:00:59]} b6 {[%emt 0:05:56]} 9. cxd5 {[%emt 0:03:08]} exd5 {[%emt 0:01:29]} 10. Be2 {[%emt 0:04:02]} Bb7 {[%emt 0:08:31]} 11. O-O {[%emt 0:01:27]} Ne4 {[%emt 0:05:55]} 12. Bf4 {[%emt 0:14:44]} f5 {[%emt 0:07:38]} 13. Ne5 {[%emt 0:04:44]} Nxe5 {[%emt 0:06:25]} 14. Bxe5 {[%emt 0:00:34]} Bd6 {[%emt 0:02:52]} 15. Bxd6 {[%emt 0:14:56]} Qxd6 {[%emt 0:03:58]} 16. b4 {[%emt 0:07:39]} Kh8 {[%emt 0:05:20]} 17. Bd3 {[%emt 0:06:07]} Rae8 {[%emt 0:01:56]} 18. Ne2 {[%emt 0:01:41]} Qe7 {[%emt 0:02:50]} 19. Rac1 {[%emt 0:04:54]} Rf6 {[%emt 0:02:29]} 20. Bxe4 {[%emt 0:04:15]} fxe4 {[%emt 0:00:55]} 21. Nc3 {[%emt 0:03:49]} Ref8 {[%emt 0:05:05]} 22. Qe2 {[%emt 0:10:00]} Qd6 {[%emt 0:02:31]} 23. f4 {[%emt 0:03:54]} exf3 {[%emt 0:01:09]} 24. Rxf3 {[%emt 0:02:01]} Rxf3 {[%emt 0:02:45]} 25. gxf3 {[%emt 0:00:02]} c5 {[%emt 0:08:23]} 26. bxc5 {[%emt 0:06:03]} bxc5 {[%emt 0:00:07]} 27. Nb5 {[%emt 0:02:38]} Qg6+ {[%emt 0:00:33]} 28. Kh1 {[%emt 0:00:25]} a6 {[%emt 0:02:25]} 29. Nc3 {[%emt 0:01:48]} cxd4 {[%emt 0:00:39]} 30. exd4 {[%emt 0:00:03]} Qf6 {[%emt 0:02:32]} 31. Rf1 {[%emt 0:00:02]} h6 {[%emt 0:01:34]} 32. Qe3 {[%emt 0:02:19]} a5 {[%emt 0:00:52]} 33. Rf2 {[%emt 0:00:46]} Qd6 {[%emt 0:01:20]} 34. Na4 {[%emt 0:00:23]} Bc6 {[%emt 0:02:04]} 35. Nc5 {[%emt 0:00:24]} Re8 {[%emt 0:00:02]} 36. Qc3 {[%emt 0:01:06]} Qf6 {[%emt 0:00:55]} 37. Qd2 {[%emt 0:00:53]} Re7 {[%emt 0:01:35]} 38. Qc3 {[%emt 0:00:32]} Bb5 {[%emt 0:00:58]} 39. a4 {[%emt 0:00:34]} Be2 {[%emt 0:01:58]} 40. Kg2 {[%emt 0:00:31]} Qg5+ {[%emt 0:00:40]} 41. Kh1 {[%emt 0:15:17]} Re3 {[%emt 0:04:01]} 42. Ne6 {[%emt 0:00:00]} Rxc3 {[%emt 0:05:46]} 43. Nxg5 {[%emt 0:00:00]} Bd1 {[%emt 0:00:53]} 44. Nf7+ {[%emt 0:02:24]} Kg8 {[%emt 0:00:36]} 45. Ne5 {[%emt 0:00:00]} Bxa4 {[%emt 0:01:46]} 46. Ra2 {[%emt 0:00:00]} Rc1+ {[%emt 0:00:12]} 47. Kg2 {[%emt 0:00:00]} Rc2+ {[%emt 0:00:03]} 48. Rxc2 {[%emt 0:00:00]} Bxc2 {[%emt 0:00:02]} 49. Nc6 {[%emt 0:00:00]} a4 {[%emt 0:00:13]} 50. Ne7+ {[%emt 0:00:00]} Kf7 {[%emt 0:00:08]} 51. Nxd5 {[%emt 0:00:00]} a3 {[%emt 0:01:03]} 52. Nb4 {[%emt 0:00:00]} Bb3 {[%emt 0:00:38]} 53. f4 {[%emt 0:00:00]} a2 {[%emt 0:00:14]} 54. Nxa2 {[%emt 0:00:00]} Bxa2 {[%emt 0:00:03]} 55. Kf3 {[%emt 0:00:00]} Ke6 {[%emt 0:01:14]} 56. Kg4 {[%emt 0:00:00]} Bb1 {[%emt 0:00:58]} 57. h4 {[%emt 0:00:00]} Bf5+ {[%emt 0:00:33]} 58. Kh5 {[%emt 0:00:00]} Kf6 {[%emt 0:00:16]} 59. d5 {[%emt 0:00:00]} Be4 {[%emt 0:00:05]} 60. d6 {[%emt 0:00:00]} Bf3# {[%emt 0:00:06]} 0-1